lending/lending_fUSD_20241115
["ID","MTS","AMOUNT","RATE_DAILY","PERIOD"]
[342241946,1731628969760,255.95502497,0.00015,15]
[342241949,1731629431726,-2094.6,8.219e-05,2]
[342241950,1731629431736,-8169.26581136,8.657e-05,2]
[342241951,1731629431781,-578.530001,8.657e-05,2]
[342241952,1731629431835,-15152.20418764,8.657e-05,2]
[342241953,1731629431844,-250.0,8.691e-05,2]
[342241954,1731629431853,-507.45,8.707e-05,2]
[342241955,1731629431863,-4247.99,8.732e-05,2]
[342241956,1731629431872,-1000.0,8.733e-05,2]
[342241957,1731629431881,-162.2,8.779e-05,2]
[342241958,1731629431891,-166.96,8.788e-05,2]
[342241959,1731629431900,-250.0,8.788e-05,2]
[342241960,1731629431909,-4261.74,8.883e-05,2]
[342241961,1731629431919,-250.0,8.936e-05,2]
[342241962,1731629431929,-488.74,9.041e-05,2]
[342241963,1731629431938,-5302.6,9.079e-05,2]
[342241964,1731629431947,-967.89,9.21e-05,2]
[342241965,1731629431956,-633.04,9.376e-05,2]
[342241966,1731629431966,-447.27,9.478e-05,2]
[342241967,1731629431975,-1781.0,9.606e-05,2]
[342241968,1731629431984,-150.99,9.67e-05,2]
[342241969,1731629431994,-1192.2395,9.8e-05,2]
[342241970,1731629432003,-476.91525,9.8e-05,2]
[342241971,1731629432013,-151.64913793,9.801e-05,2]
[342241972,1731629432022,-150.0,9.819e-05,2]
[342241973,1731629432031,-37889.5893,9.82e-05,2]
[342241974,1731629432042,-1000.0,9.82e-05,2]
[342241975,1731629432051,-1000.0,9.825e-05,2]
[342241976,1731629432066,-166.96,9.887e-05,2]
[342241977,1731629432075,-462.0094,9.889e-05,2]
[342241978,1731629432084,-22177.8075,9.9e-05,2]
[342241979,1731629432093,-500.0,9.92e-05,2]
[342241980,1731629432102,-500.0,9.973e-05,2]
[342241982,1731629432111,-500.0,9.973e-05,2]
[342241983,1731629432120,-500.0,9.973e-05,2]
[342241985,1731629432130,-176.954,9.973e-05,2]
[342241986,1731629432139,-609.742,9.973e-05,2]
[342241988,1731629432148,-544.66898156,9.999e-05,2]
[342241990,1731629432158,-83358.52587574,0.0001,2]
[342242003,1731629433635,-1906.48754834,0.0001,2]
[342242004,1731629433668,-5702.42723963,0.0001,2]
[342242005,1731629433716,-2687.72843542,0.0001,2]
[342242006,1731629433728,-59864.00000121,0.0001,2]
[342242007,1731629433739,-1039.14973622,0.0001,2]
[342242008,1731629437772,-4989.97334439,0.0001,2]
[342242009,1731629437826,-427.95,0.0001,2]
[342242010,1731629437881,-838.12231162,0.0001,2]
[342242011,1731629437988,-9476.14118342,0.0001,2]
[342242012,1731629437999,-4094853.40304469,0.0001,2]
[342242013,1731629438011,-592.37453589,0.0001,2]
[342242014,1731629438045,-8011.28309462,0.0001,2]
[342242016,1731629439774,-3101.9014,0.0001,2]
[342242017,1731629439829,-176103.59880001,0.0001,2]
[342242018,1731629439990,-2131.94158844,0.0001,2]
[342242019,1731629440150,-1370.72615077,0.0001,2]
[342242025,1731629442736,-472.30184629,0.0001,2]
[342242026,1731629442787,-1953.77468082,0.0001,2]
[342242027,1731629442799,-4266.92683192,0.0001,2]
[342242028,1731629442809,-2996.95197003,0.0001,2]
[342242063,1731629446301,-390.07999,0.0001,2]
[342242064,1731629446329,-1184.14111477,0.0001,2]
[342242065,1731629446340,-3070.49664855,0.0001,2]
[342242066,1731629446351,-13000.25518977,0.0001,2]
[342242067,1731629446362,-11316.09038625,0.0001,2]
[342242068,1731629446373,-906.15477628,0.0001,2]
[342242069,1731629446385,-1414.00286,0.0001,2]
[342242070,1731629471381,1019.0994019,0.0001,14]
[342242071,1731629492134,159.991382,0.00015,15]
[342242072,1731629499583,5000.0,0.00015,15]
[342242074,1731629611899,178.162,0.0001476,15]
[342242075,1731629665453,-11557.0,0.000103,5]
[342242076,1731629696617,11557.0,0.000103,5]
[342242077,1731629728209,886.0,0.000103,5]
[342242078,1731629769334,-3000.0,0.000103,5]
[342242081,1731630432931,-150.0,7.012e-05,2]
[342242082,1731630433099,-109.22,7.012e-05,2]
[342242083,1731630480498,12342.24965739,0.00013,15]
[342242095,1731630590772,-1989.87,8.219e-05,2]
[342242096,1731630590797,-200.0,8.6e-05,2]
[342242097,1731630590823,-250.0,8.923e-05,2]
[342242098,1731630590849,-371.99,8.945e-05,2]
[342242099,1731630590875,-2129.96483,9e-05,2]
[342242100,1731630590904,-7458.17517,9.005e-05,2]
[342242109,1731630631899,-250.0,8.965e-05,2]
[342242110,1731630631915,-8860.77520033,9.005e-05,2]
[342242111,1731630631926,-1063.76843198,9.005e-05,2]
[342242112,1731630632270,-320.7576442,9.005e-05,2]
[342242113,1731630632281,-1528.33579149,9.005e-05,2]
[342242114,1731630632294,-4668.187762,9.005e-05,2]
[342242115,1731630632303,-699.82,9.022e-05,2]
[342242116,1731630632313,-1000.0,9.105e-05,2]
[342242117,1731630632322,-250.0,9.208e-05,2]
[342242118,1731630632333,-255.0,9.67e-05,2]
[342242119,1731630632343,-1878.67,9.67e-05,2]
[342242120,1731630632353,-160.01,9.737e-05,2]
[342242121,1731630632364,-222.0,9.741e-05,2]
[342242122,1731630632373,-160.01,9.741e-05,2]
[342242123,1731630632386,-222.0,9.746e-05,2]
[342242124,1731630632396,-160.01,9.746e-05,2]
[342242125,1731630632405,-160.01,9.75e-05,2]
[342242126,1731630632414,-160.01,9.754e-05,2]
[342242127,1731630632424,-160.01,9.759e-05,2]
[342242128,1731630632434,-160.01,9.763e-05,2]
[342242129,1731630632443,-160.01,9.768e-05,2]
[342242130,1731630632453,-160.01,9.772e-05,2]
[342242131,1731630632463,-160.01,9.777e-05,2]
[342242132,1731630632471,-160.01,9.781e-05,2]
[342242133,1731630632480,-160.01,9.786e-05,2]
[342242134,1731630632490,-3374.0,9.9e-05,2]
[342242135,1731630632499,-500.0,9.92e-05,2]
[342242136,1731630632507,-500.0,9.973e-05,2]
[342242137,1731630632516,-500.0,9.973e-05,2]
[342242138,1731630632525,-150.0,9.998e-05,2]
[342242139,1731630632534,-1216.62600174,9.999e-05,3]
[342242140,1731630632548,-1550.39,9.999e-05,2]
[342242141,1731630632557,-631.388,9.999e-05,2]
[342242142,1731630632565,-1295.47540526,9.999e-05,2]
[342242143,1731630632580,-10264.31449639,9.999e-05,2]
[342242144,1731630632599,-1832.82413178,9.999e-05,2]
[342242145,1731630632609,-303.86164277,9.999e-05,2]
[342242146,1731630632618,-4342.67389787,0.0001,2]
[342242156,1731630638158,-483.7355491,0.0001,2]
[342242157,1731630638169,-4098559.1498379,0.0001,2]
[342242190,1731630639994,-310.02,0.0001,2]
[342242194,1731630640112,-780.61715,0.0001,2]
[342242198,1731630642933,-671.84518119,0.0001,2]
[342242199,1731630643052,-27449.34423429,0.0001,2]
[342242371,1731630646132,-105967.09509498,0.0001,2]
[342242372,1731630646359,-775.95441969,0.0001,2]
[342242373,1731630646371,-423.05900541,0.0001,2]
[342242379,1731631105425,-1900.0,8.219e-05,2]
[342242409,1731631832112,-1879.61,8.219e-05,2]
[342242410,1731631832122,-250.0,9.027e-05,2]
[342242411,1731631832131,-23900.0,9.034e-05,2]
[342242412,1731631832140,-1000.0,9.041e-05,2]
[342242413,1731631832149,-250.0,9.064e-05,2]
[342242414,1731631832157,-559.86,9.085e-05,2]
[342242415,1731631832166,-1361.19,9.135e-05,2]
[342242416,1731631832175,-162.22,9.135e-05,2]
[342242417,1731631832185,-250.0,9.208e-05,2]
[342242418,1731631832194,-185.99,9.233e-05,2]
[342242419,1731631832203,-240.14,9.28e-05,2]
[342242420,1731631832212,-162.2,9.422e-05,2]
[342242421,1731631832221,-300.0,9.44e-05,2]
[342242422,1731631832231,-967.89,9.758e-05,2]
[342242423,1731631832240,-820.13,9.758e-05,2]
[342242424,1731631832250,-500.0,9.973e-05,2]
[342242425,1731631832261,-505.11,9.973e-05,2]
[342242426,1731631832274,-1485.79,9.999e-05,2]
[342242427,1731631832283,-150.0,9.999e-05,2]
[342242428,1731631832293,-229798.87,0.0001,2]
[342242429,1731631832304,-154249.880826,0.0001,2]
[342242430,1731631832328,-431687.71836069,0.0001,2]
[342242431,1731631832339,-1516.07,0.0001,2]
[342242432,1731631832351,-88025.76022542,0.0001,2]
[342242444,1731631838063,-500.0,9.973e-05,2]
[342242445,1731631838072,-1282.70978334,0.0001,2]
[342242446,1731631838120,-13038.61793164,0.0001,2]
[342242447,1731631838131,-2003.8069504,0.0001,2]
[342242448,1731631838284,-4098559.1498379,0.0001,2]
[342242449,1731631838343,-598.60501061,0.0001,2]
[342242614,1731631840183,-8047.4,0.0001,2]
[342242626,1731631840293,-465.12838442,0.0001,2]
[342242628,1731631840307,-5861.56226148,0.0001,2]
[342242676,1731631843140,-10606.215088,0.0001,2]
[342242677,1731631843152,-361.6285719,0.0001,2]
[342242678,1731631843198,-1368.718351,0.0001,2]
[342242679,1731631843257,-6306.81451869,0.0001,2]
[342242680,1731631843278,-41227.51849276,0.0001,2]
[342242681,1731631843313,-8206.79,0.0001,2]
[342242717,1731631846068,-494.46590781,0.0001,2]
[342242718,1731631846500,-28465.23952024,0.0001,2]
[342242720,1731632163341,10000.0,0.0002,60]
[342242721,1731632173403,10000.0,0.0002,60]
[342242723,1731632574298,177.203,0.0001953,60]
[342242726,1731632680601,41261.62774524,0.000217,120]
[342242730,1731633032382,-1839.12,8.219e-05,2]
[342242731,1731633032392,-200.0,8.6e-05,2]
[342242732,1731633032401,-185.99,8.734e-05,2]
[342242733,1731633032411,-162.22,8.734e-05,2]
[342242734,1731633032421,-1000.0,8.76e-05,2]
[342242735,1731633032430,-250.0,8.777e-05,2]
[342242736,1731633032442,-300.0,8.844e-05,2]
[342242737,1731633032452,-23900.0,8.845e-05,2]
[342242738,1731633032461,-300.0,9e-05,3]
[342242739,1731633032471,-250.0,9.03e-05,2]
[342242740,1731633032480,-250.0,9.068e-05,2]
[342242741,1731633032490,-600.0,9.1e-05,3]
[342242742,1731633032500,-900.0,9.2e-05,3]
[342242743,1731633032510,-1300.0,9.3e-05,3]
[342242744,1731633032521,-150.0,9.377e-05,2]
[342242745,1731633032530,-166.28,9.378e-05,2]
[342242746,1731633032540,-1600.0,9.4e-05,3]
[342242747,1731633032550,-300.0,9.5e-05,3]
[342242748,1731633032559,-300.0,9.6e-05,3]
[342242749,1731633032569,-166.28,9.687e-05,2]
[342242750,1731633032579,-300.0,9.7e-05,3]
[342242751,1731633032588,-588.28923009,9.8e-05,2]
[342242752,1731633032598,-300.0,9.8e-05,3]
[342242753,1731633032608,-1000.0,9.855e-05,2]
[342242754,1731633032617,-150.0,9.899e-05,2]
[342242755,1731633032627,-57079.0778,9.9e-05,2]
[342242756,1731633032637,-33727.9607,9.9e-05,2]
[342242757,1731633032647,-1000.0,9.9e-05,2]
[342242758,1731633032660,-1214.4905,9.9e-05,2]
[342242759,1731633032669,-14186.4663,9.9e-05,2]
[342242760,1731633032678,-753.5468,9.9e-05,2]
[342242761,1731633032690,-2454.9844,9.9e-05,2]
[342242762,1731633032700,-1000.0,9.9e-05,2]
[342242763,1731633032709,-755.0,9.9e-05,3]
[342242764,1731633032720,-1087.0,9.9e-05,2]
[342242766,1731633032731,-12020.70856289,9.9e-05,2]
[342242768,1731633032741,-500.0,9.92e-05,2]
[342242769,1731633032750,-451.4090138,9.973e-05,2]
[342242771,1731633032760,-500.0,9.973e-05,2]
[342242773,1731633032769,-500.0,9.973e-05,2]
[342242775,1731633032778,-500.0,9.973e-05,2]
[342242777,1731633032788,-584.961,9.973e-05,2]
[342242778,1731633032797,-166.28,9.997e-05,2]
[342242779,1731633032806,-12813.00911417,9.999e-05,2]
[342242780,1731633032817,-692.47612666,9.999e-05,2]
[342242781,1731633032827,-1119.22,9.999e-05,2]
[342242782,1731633032836,-20000.0,9.999e-05,3]
[342242783,1731633032846,-20000.0,9.999e-05,3]
[342242784,1731633032860,-20000.0,9.999e-05,3]
[342242785,1731633032870,-20000.0,9.999e-05,3]
[342242786,1731633032880,-20000.0,9.999e-05,3]
[342242787,1731633032890,-20000.0,9.999e-05,3]
[342242788,1731633032900,-20000.0,9.999e-05,3]
[342242789,1731633032910,-20000.0,9.999e-05,3]
[342242790,1731633032920,-20000.0,9.999e-05,3]
[342242791,1731633032930,-20000.0,9.999e-05,3]
[342242792,1731633032943,-20000.0,9.999e-05,3]
[342242793,1731633032952,-20000.0,9.999e-05,3]
[342242794,1731633032962,-20000.0,9.999e-05,3]
[342242795,1731633032972,-20000.0,9.999e-05,3]
[342242796,1731633032982,-20000.0,9.999e-05,3]
[342242797,1731633032993,-20000.0,9.999e-05,3]
[342242798,1731633033003,-20000.0,9.999e-05,3]
[342242799,1731633033013,-20000.0,9.999e-05,3]
[342242800,1731633033023,-20000.0,9.999e-05,3]
[342242801,1731633033032,-20000.0,9.999e-05,3]
[342242802,1731633033042,-20000.0,9.999e-05,3]
[342242803,1731633033052,-6563.76101288,9.999e-05,3]
[342242804,1731633033062,-273893.93459351,0.0001,2]
[342242805,1731633033075,-754.03634452,0.0001,2]
[342242806,1731633033088,-2574.86602488,0.0001,2]
[342242807,1731633033101,-7933.5579185,0.0001,2]
[342242808,1731633033113,-276.52,0.0001,2]
[342242809,1731633033139,-5622.03985906,0.0001,2]
[342242810,1731633033151,-1368.41265946,0.0001,2]
[342242811,1731633033179,-1353.8425862,0.0001,2]
[342242812,1731633033206,-30709.46871246,0.0001,2]
[342242813,1731633033219,-1373.59967977,0.0001,2]
[342242814,1731633033231,-627.2,0.0001,2]
[342242822,1731633038821,-4098559.1498379,0.0001,2]
[342242823,1731633038832,-5290.69750112,0.0001,2]
[342242824,1731633038848,-18740.49888277,0.0001,2]
[342242826,1731633038860,-4686.37680728,0.0001,2]
[342242827,1731633038888,-1795459.65289234,0.0001,2]
[342242828,1731633038899,-225321.25013557,0.0001,2]
[342242829,1731633038910,-3602.50878093,0.0001,2]
[342242830,1731633038921,-1680.61684193,0.0001,2]
[342242857,1731633040952,-429.6296064,9.999e-05,2]
[342242859,1731633040963,-262.84652026,9.999e-05,2]
[342242861,1731633040973,-1020.46267238,0.0001,2]
[342242864,1731633040984,-1320.76288066,0.0001,2]
[342242867,1731633043359,-295.38658189,0.0001,2]
[342242868,1731633043436,-48225.31628359,0.0001,2]
[342242869,1731633043514,-4261.5987456,0.0001,2]
[342242880,1731633046471,-5371.4029253,0.0001,2]
[342242881,1731633046619,-8966.06194617,0.0001,2]
[342242882,1731633046632,-15409.26312,0.0001,2]
[342242883,1731633046643,-57880.645,0.0001,2]
[342242884,1731633046656,-17789.15775,0.0001,2]
[342242885,1731633046702,-5010.87857544,0.0001,2]
[342242889,1731633788253,-1747.16,8.219e-05,2]
[342242890,1731633788279,-1852.42,8.734e-05,2]
[342242891,1731633788301,-1516.07,8.734e-05,2]
[342242892,1731633788324,-825.3617,8.745e-05,2]
[342242893,1731633788354,-352.11,8.845e-05,2]
[342242894,1731633788378,-188.9,9.018e-05,2]
[342242895,1731633788401,-912.69,9.051e-05,2]
[342242896,1731633788423,-250.0,9.09e-05,2]
[342242897,1731633788446,-1000.0,9.09e-05,2]
[342242898,1731633788467,-520.91,9.142e-05,2]
[342242899,1731633788491,-250.0,9.169e-05,2]
[342242900,1731633788514,-10343.3783,9.205e-05,2]
[342242903,1731633975268,-1659.8,8.219e-05,2]
[342242904,1731633975294,-183.2,9e-05,2]
[342242905,1731633984746,607.7,0.000217,120]
[342242906,1731634035094,184.59005078,0.000163,120]
[342242911,1731634201493,150.0,6e-05,2]
[342242912,1731634201515,150.0,6e-05,2]
[342242913,1731634201538,150.0,6e-05,2]
[342242914,1731634201561,150.0,6e-05,2]
[342242915,1731634201585,150.0,6e-05,2]
[342242916,1731634201607,150.0,6e-05,2]
[342242917,1731634201630,150.0,6e-05,2]
[342242918,1731634201657,150.0,6e-05,2]
[342242919,1731634201680,150.0,6e-05,2]
[342242920,1731634201704,150.0,6e-05,2]
[342242921,1731634201727,150.0,6e-05,2]
[342242922,1731634201752,150.0,6e-05,2]
[342242923,1731634202139,150.0,6e-05,2]
[342242924,1731634202175,150.0,6e-05,2]
[342242925,1731634202200,150.0,6e-05,2]
[342242926,1731634202225,150.0,6e-05,2]
[342242927,1731634202251,150.0,6e-05,2]
[342242928,1731634202281,12450.0,6e-05,2]
[342242945,1731634231727,-200.0,8.6e-05,2]
[342242946,1731634231737,-518.31,8.982e-05,2]
[342242947,1731634231747,-1568.48370162,9e-05,2]
[342242948,1731634231759,-148.31629838,9e-05,2]
[342242949,1731634231769,-875.21075162,9.015e-05,2]
[342242950,1731634231901,-10.1063166,9.015e-05,2]
[342242951,1731634231912,-2330.69498466,9.015e-05,2]
[342242952,1731634231924,-1774.90435333,9.015e-05,2]
[342242953,1731634231967,-4115.61917769,9.015e-05,2]
[342242954,1731634231980,-947.19646898,9.015e-05,2]
[342242955,1731634231990,-2182.95,9.087e-05,2]
[342242956,1731634231999,-23900.0,9.109e-05,2]
[342242957,1731634232008,-944.76,9.12e-05,2]
[342242958,1731634232018,-170.07317842,9.145e-05,2]
[342242960,1731634232027,-150.0,9.145e-05,2]
[342242962,1731634232036,-3724.77,9.146e-05,2]
[342242964,1731634232050,-250.0,9.202e-05,2]
[342242966,1731634232060,-620.14,9.208e-05,2]
[342242968,1731634232070,-2761.08,9.234e-05,2]
[342242969,1731634232079,-164.85,9.484e-05,2]
[342242970,1731634232089,-1255.0,9.6e-05,2]
[342242971,1731634232098,-631.0,9.6e-05,2]
[342242972,1731634232107,-453.0,9.6e-05,2]
[342242973,1731634232117,-241.642,9.6e-05,2]
[342242974,1731634232127,-1165.196,9.6e-05,2]
[342242975,1731634232137,-1000.0,9.7e-05,2]
[342242976,1731634232146,-1000.0,9.898e-05,2]
[342242977,1731634232155,-8146.4041622,9.899e-05,2]
[342242978,1731634232169,-1669.17885113,9.899e-05,2]
[342242979,1731634232214,-312.76687588,9.899e-05,2]
[342242980,1731634232225,-2345.06694771,9.899e-05,2]
[342242981,1731634237627,-565.618,9.6e-05,2]
[342242982,1731634237637,-2500.382,9.899e-05,2]
[342242994,1731634238271,-19055.98406308,9.899e-05,2]
[342242995,1731634238280,-352.11,9.951e-05,2]
[342242996,1731634238290,-500.0,9.973e-05,2]
[342242997,1731634238299,-500.0,9.973e-05,2]
[342242998,1731634238309,-467.969,9.973e-05,2]
[342242999,1731634238318,-1428.56,9.999e-05,2]
[342243000,1731634238327,-46807.47741645,9.999e-05,2]
[342243001,1731634238336,-4036712.63454966,0.0001,2]
[342243002,1731634238348,-5940.34185658,0.0001,2]
[342243003,1731634238381,-2918.35301078,0.0001,2]
[342243004,1731634238392,-849.08199433,0.0001,2]
[342243005,1731634238403,-3961.97304632,0.0001,2]
[342243006,1731634238414,-900.19847056,0.0001,2]
[342243007,1731634238429,-402.30263252,0.0001,2]
[342243008,1731634239659,-592.3,0.0001,2]
[342243009,1731634241497,-1024.52459034,0.0001,2]
[342243010,1731634241509,-956.2046176,0.0001,2]
[342243012,1731634242687,-2268.84819572,0.0001,2]
[342243017,1731634242819,-210.865,9.6e-05,2]
[342243018,1731634242829,-14952.43713156,0.0001,2]
[342243019,1731634242957,-311.05949759,0.0001,2]
[342243020,1731634242969,-660.3825,0.0001,2]
[342243021,1731634243094,-6104.03190858,0.0001,2]
[342243022,1731634243105,-4266.44109992,0.0001,2]
[342243023,1731634243116,-3135.3,0.0001,2]
[342243024,1731634243128,-8797.2761356,0.0001,2]
[342243028,1731634247212,-87774.84257885,0.0001,2]
[342243029,1731634247223,-3433.37644386,0.0001,2]
[342243036,1731634935104,-1697.42,8.219e-05,2]
[342243037,1731634935128,-385.35,8.712e-05,2]
[342243038,1731634935152,-2421.23,8.814e-05,2]
[342243039,1731635329623,1029.01,0.0002,60]
[342243053,1731635432931,-250.0,8.657e-05,2]
[342243054,1731635432940,-573.73,8.662e-05,2]
[342243055,1731635433013,-572.36,8.662e-05,2]
[342243056,1731635433023,-172.72,8.698e-05,2]
[342243057,1731635433033,-500.0,8.744e-05,2]
[342243058,1731635433042,-1000.0,8.75e-05,2]
[342243059,1731635433053,-7758.35684757,8.814e-05,2]
[342243060,1731635433408,-1488.29368655,8.814e-05,2]
[342243061,1731635433447,-8661.36946588,8.814e-05,2]
[342243062,1731635433457,-400.0,9e-05,3]
[342243063,1731635433467,-400.0,9e-05,3]
[342243064,1731635433479,-225.0,9e-05,2]
[342243065,1731635433488,-233.0,9e-05,3]
[342243066,1731635433499,-450.28,9e-05,2]
[342243067,1731635433509,-1526.3,9e-05,2]
[342243068,1731635433519,-1200.0,9e-05,3]
[342243069,1731635433527,-222.0,9.085e-05,2]
[342243070,1731635433536,-255.0,9.085e-05,2]
[342243071,1731635433545,-222.0,9.085e-05,2]
[342243072,1731635433557,-266.0,9.085e-05,2]
[342243073,1731635433566,-250.0,9.085e-05,2]
[342243074,1731635433576,-2500.0,9.1e-05,3]
[342243075,1731635433585,-3800.0,9.2e-05,3]
[342243076,1731635433595,-5100.0,9.3e-05,3]
[342243077,1731635433605,-6400.0,9.4e-05,3]
[342243078,1731635433615,-1200.0,9.5e-05,3]
[342243079,1731635433623,-1200.0,9.6e-05,3]
[342243080,1731635433632,-216.0,9.606e-05,2]
[342243081,1731635433642,-1200.0,9.7e-05,3]
[342243082,1731635433652,-150.0,9.771e-05,2]
[342243083,1731635433662,-152.0,9.772e-05,2]
[342243084,1731635433672,-155.87,9.772e-05,2]
[342243085,1731635433682,-294.33,9.772e-05,2]
[342243086,1731635433692,-150.0,9.772e-05,2]
[342243087,1731635433702,-150.0,9.772e-05,2]
[342243088,1731635433711,-150.0,9.772e-05,2]
[342243089,1731635433721,-150.0,9.772e-05,2]
[342243090,1731635433731,-868.28,9.772e-05,2]
[342243091,1731635433741,-638.57716736,9.8e-05,2]
[342243092,1731635433751,-1200.0,9.8e-05,3]
[342243093,1731635433760,-385.35,9.801e-05,2]
[342243094,1731635433771,-1000.0,9.844e-05,2]
[342243095,1731635433782,-480.3128,9.9e-05,2]
[342243096,1731635433791,-1909.6316,9.9e-05,2]
[342243097,1731635433801,-252.8099,9.9e-05,2]
[342243098,1731635433811,-172.6757,9.9e-05,2]
[342243099,1731635433821,-612.7145,9.9e-05,2]
[342243100,1731635433830,-2002.0,9.9e-05,3]
[342243101,1731635433840,-477.99,9.939e-05,2]
[342243102,1731635433850,-500.0,9.973e-05,2]
[342243103,1731635433859,-1369.51,9.999e-05,2]
[342243104,1731635433869,-202.39833878,9.999e-05,3]
[342243105,1731635433878,-4920607.8735367,0.0001,2]
[342243106,1731635433944,-12900.0,0.0001,2]
[342243107,1731635433955,-15016.46998079,0.0001,2]
[342243108,1731635433966,-34540.46278901,0.0001,2]
[342243109,1731635434006,-12894.79695264,0.0001,2]
[342243115,1731635437985,-502.98459405,9.973e-05,2]
[342243116,1731635437995,-4086265.76637206,9.999e-05,2]
[342243117,1731635438007,-313.30653969,9.999e-05,2]
[342243118,1731635438019,-2348.31383128,9.999e-05,2]
[342243119,1731635438199,-1043.5,9.999e-05,2]
[342243121,1731635440008,-256.45423774,9.999e-05,2]
[342243122,1731635440020,-486.06072121,9.999e-05,2]
[342243123,1731635440031,-12745.69763446,9.999e-05,2]
[342243124,1731635440042,-499.7582014,9.999e-05,2]
[342243125,1731635440053,-1264.77570916,9.999e-05,2]
[342243126,1731635440188,-31610.87831787,9.999e-05,2]
[342243127,1731635440199,-932.29979879,9.999e-05,2]
[342243137,1731635444711,-10792.46980448,9.999e-05,2]
[342243138,1731635444723,-35623.50578805,9.999e-05,2]
[342243139,1731635444735,-15002.04831216,9.999e-05,2]
[342243141,1731635445831,-3187.88732942,9.999e-05,2]
[342243142,1731635445960,-1688.15985782,9.999e-05,2]
[342243143,1731635446076,-3295.61208779,9.999e-05,2]
[342243154,1731636478352,176.184,0.0001779,60]
[342243157,1731636632241,-1460.0,8.219e-05,2]
[342243158,1731636632251,-1634.93,8.219e-05,2]
[342243159,1731636632260,-200.0,8.6e-05,2]
[342243160,1731636632270,-250.0,8.744e-05,2]
[342243161,1731636632279,-1000.0,8.784e-05,2]
[342243162,1731636632288,-182.57,8.864e-05,2]
[342243163,1731636632297,-250.0,8.896e-05,2]
[342243164,1731636632306,-414.65,8.929e-05,2]
[342243165,1731636632315,-250.0,8.998e-05,2]
[342243166,1731636632324,-1419.5,9.08e-05,2]
[342243167,1731636632333,-65.09258173,9.093e-05,2]
[342243168,1731636632344,-177.70741827,9.093e-05,2]
[342243169,1731636632353,-171.5,9.174e-05,2]
[342243170,1731636632362,-16449.46248033,9.227e-05,2]
[342243171,1731636632374,-4926.3279,9.227e-05,2]
[342243172,1731636632385,-1571.04711358,9.227e-05,2]
[342243173,1731636632396,-6506.82550513,9.227e-05,2]
[342243174,1731636632448,-1034.46527114,9.227e-05,2]
[342243176,1731636632459,-700.0,9.227e-05,2]
[342243178,1731636632470,-1665.93206113,9.227e-05,2]
[342243259,1731636638178,-8182.93966869,9.227e-05,2]
[342243260,1731636638188,-166.6,9.42e-05,2]
[342243261,1731636638197,-361.6,9.478e-05,2]
[342243262,1731636638206,-398.66,9.478e-05,2]
[342243263,1731636638215,-150.0,9.577e-05,2]
[342243264,1731636638224,-433.23,9.578e-05,2]
[342243265,1731636638236,-728.73,9.578e-05,2]
[342243266,1731636638246,-150.43,9.578e-05,2]
[342243267,1731636638255,-433.23,9.578e-05,2]
[342243268,1731636638264,-433.23,9.578e-05,2]
[342243269,1731636638274,-433.23,9.578e-05,2]
[342243270,1731636638286,-433.23,9.578e-05,2]
[342243271,1731636638295,-763.3,9.592e-05,2]
[342243272,1731636638304,-154.14,9.616e-05,2]
[342243273,1731636638313,-379.15,9.752e-05,2]
[342243274,1731636638323,-559.13030045,9.8e-05,2]
[342243275,1731636638332,-1000.0,9.882e-05,2]
[342243276,1731636638341,-923.0776,9.9e-05,2]
[342243277,1731636638350,-187.30788048,9.9e-05,2]
[342243278,1731636638362,-1535.2,9.9e-05,2]
[342243279,1731636638375,-1621.16911952,9.9e-05,2]
[342243280,1731636638384,-320.3128141,9.9e-05,2]
[342243281,1731636638414,-240.8969859,9.9e-05,2]
[342243282,1731636638423,-15014.0017,9.9e-05,2]
[342243283,1731636638432,-168.6336,9.9e-05,2]
[342243284,1731636638441,-1004.9228,9.9e-05,2]
[342243285,1731636638451,-166.5215,9.9e-05,2]
[342243286,1731636638460,-500.0,9.919e-05,2]
[342243287,1731636638469,-382.392,9.921e-05,2]